[Event "IMSA Blitz Women 2019"]
[Site "Hengshui"]
[Date "2019.05.17"]
[Round "1.2"]
[White "Bodnaruk, Anastasia"]
[Black "Gunina, Valentina"]
[Result "1-0"]
[ECO "B12"]
[WhiteElo "2431"]
[BlackElo "2506"]
[Annotator "RC"]
[PlyCount "165"]
[EventDate "2019.05.17"]
[EventType "blitz"]
[EventCountry "CHN"]
[SourceTitle "playchess.com"]
[Source "ChessBase"]
[SourceQuality "1"]
[TimeControl "180+2"]

1. e4 {[%emt 0:00:00]} c6 {[%emt 0:00:00]} 2. d4 {[%emt 0:00:00]} d5 {[%emt 0:00:00]} 3. e5 {[%emt 0:00:00]} Bf5 {[%emt 0:00:01]} 4. Nf3 {[%emt 0:00:01]} e6 {[%emt 0:00:02]} 5. Be2 {[%emt 0:00:00]} Nd7 {[%emt 0:00:01]} 6. O-O {[%emt 0:00:02]} h6 {[%emt 0:00:01]} 7. c3 {[%emt 0:00:00]} Ne7 {[%emt 0:00:01]} 8. Nbd2 {[%emt 0:00:08]} a5 {[%emt 0:00:04]} 9. Ne1 {[%emt 0:00:02]} c5 {[%emt 0:00:01]} 10. Ndf3 {[%emt 0:00:06]} Nc6 {[%emt 0:00:01]} 11. Bd3 {[%emt 0:00:03]} Bxd3 {[%emt 0:00:02]} 12. Nxd3 {[%emt 0:00:02]} Be7 {[%emt 0:00:01]} 13. Be3 {[%emt 0:00:04]} cxd4 {[%emt 0:00:05]} 14. cxd4 {[%emt 0:00:08]} O-O {[%emt 0:00:02]} 15. Nd2 {[%emt 0:00:02]} Qb6 {[%emt 0:00:03]} 16. Qg4 {[%emt 0:00:02]} Kh7 {[%emt 0:00:05]} 17. Nf4 {[%emt 0:00:09]} Rad8 {[%emt 0:00:31]} 18. Nf3 {[%emt 0:00:15]} Qxb2 {[%emt 0:00:23]} 19. Rab1 {[%emt 0:00:03]} Qxa2 {[%emt 0:00:16]} 20. Rxb7 {[%emt 0:00:02]} a4 {[%emt 0:01:04]} 21. Nh5 {[%emt 0:00:09]} Rg8 {[%emt 0:00:42]} 22. Qf4 {[%emt 0:00:01]} Qc2 {[%emt 0:00:08]} 23. Qxf7 {[%emt 0:01:01]} Qg6 {[%emt 0:00:01]} 24. Qxg6+ {[%emt 0:00:06]} Kxg6 {[%emt 0:00:01]} 25. Nf4+ {[%emt 0:00:01]} Kf7 {[%emt 0:00:01]} 26. Rc1 {[%emt 0:00:15]} Na5 {[%emt 0:00:06]} 27. Ra7 {[%emt 0:00:03]} Nc4 {[%emt 0:00:01]} 28. Rxa4 {[%emt 0:00:07]} Ra8 {[%emt 0:00:00]} 29. Rxa8 {[%emt 0:00:04]} Rxa8 {[%emt 0:00:01]} 30. h4 {[%emt 0:00:12]} Ra3 {[%emt 0:00:01]} 31. Re1 {[%emt 0:00:01]} Bb4 {[%emt 0:00:03]} 32. Re2 {[%emt 0:00:01]} Nb8 {[%emt 0:00:05]} 33. h5 {[%emt 0:00:24]} Nc6 {[%emt 0:00:00]} 34. g4 {[%emt 0:00:07]} Ra1+ {[%emt 0:00:03]} 35. Kg2 {[%emt 0:00:01]} Bc3 {[%emt 0:00:03]} 36. g5 {[%emt 0:00:07]} Rd1 {[%emt 0:00:04]} 37. g6+ {[%emt 0:00:07]} Ke7 {[%emt 0:00:02]} 38. Ra2 {[%emt 0:00:03]} Ra1 {[%emt 0:00:01]} 39. Rc2 {[%emt 0:00:03]} Ra3 {[%emt 0:00:02]} 40. Ne2 {[%emt 0:00:06]} Bb4 {[%emt 0:00:01]} 41. Bf4 {[%emt 0:00:05]} Rd3 {[%emt 0:00:03]} 42. Ra2 {[%emt 0:00:02]} Ra3 {[%emt 0:00:01]} 43. Rc2 {[%emt 0:00:00]} Rd3 {[%emt 0:00:02]} 44. Ra2 {[%emt 0:00:01]} Ra3 45. Rc2 Rd3 {[%emt 0:00:02]} 46. Kg3 {[%emt 0:00:07]} Ra3 {[%emt 0:00:02]} 47. Kg4 {[%emt 0:00:02]} Rd3 {[%emt 0:00:04]} 48. Rc1 {[%emt 0:00:04]} Ra3 {[%emt 0:00:01]} 49. Rd1 {[%emt 0:00:02]} Ra8 {[%emt 0:00:02]} 50. Rb1 {[%emt 0:00:03]} Ra4 {[%emt 0:00:03]} 51. Kg3 {[%emt 0:00:02]} Na3 {[%emt 0:00:02]} 52. Rc1 {[%emt 0:00:01]} Nc4 {[%emt 0:00:01]} 53. Nh2 {[%emt 0:00:01]} Ra2 {[%emt 0:00:02]} 54. Ng1 {[%emt 0:00:05]} Ra3+ {[%emt 0:00:01]} 55. Ngf3 {[%emt 0:00:02]} Nxd4 {[%emt 0:00:01]} 56. Rd1 {[%emt 0:00:03]} Ne2+ {[%emt 0:00:02]} 57. Kg4 {[%emt 0:00:00]} Nxf4 {[%emt 0:00:01]} 58. Kxf4 {[%emt 0:00:01]} Nb2 {[%emt 0:00:03]} 59. Rb1 {[%emt 0:00:03]} Nd3+ {[%emt 0:00:01]} 60. Kg4 {[%emt 0:00:02]} Kd7 {[%emt 0:00:03]} 61. Nd4 {[%emt 0:00:04]} Ra4 {[%emt 0:00:04]} 62. Kf3 {[%emt 0:00:01]} Nxe5+ {[%emt 0:00:01]} 63. Ke2 {[%emt 0:00:02]} Nc6 {[%emt 0:00:03]} 64. Nxc6 {[%emt 0:00:02]} Kxc6 65. Ng4 {[%emt 0:00:01]} d4 {[%emt 0:00:05]} 66. Nxh6 {[%emt 0:00:02]} Kd5 {[%emt 0:00:02]} 67. Nf7 {[%emt 0:00:02]} Ra2+ {[%emt 0:00:01]} 68. Kf3 {[%emt 0:00:01]} Be7 {[%emt 0:00:04]} 69. Rb7 {[%emt 0:00:04]} Bf6 {[%emt 0:00:02]} 70. h6 {[%emt 0:00:01]} gxh6 {[%emt 0:00:00]} 71. Nxh6 {[%emt 0:00:01]} Ra3+ {[%emt 0:00:02]} 72. Kg2 {[%emt 0:00:01]} Kc6 {[%emt 0:00:04]} 73. Rb1 {[%emt 0:00:02]} d3 {[%emt 0:00:01]} 74. Ng4 {[%emt 0:00:02]} Bg7 {[%emt 0:00:01]} 75. Rd1 {[%emt 0:00:04]} Kc5 {[%emt 0:00:02]} 76. f4 {[%emt 0:00:02]} Kd4 {[%emt 0:00:02]} 77. Kf3 {[%emt 0:00:01]} Kc3 {[%emt 0:00:05]} 78. Ne3 {[%emt 0:00:03]} Bd4 {[%emt 0:00:04]} 79. Rg1 {[%emt 0:00:03]} d2 {[%emt 0:00:04]} 80. g7 {[%emt 0:00:02]} Bxg7 {[%emt 0:00:01]} 81. Rxg7 {[%emt 0:00:01]} Kb2 {[%emt 0:00:04]} 82. Rd7 {[%emt 0:00:03]} Kc1 83. Ke4 1-0

[Event "IMSA Blitz Women 2019"]
[Site "Hengshui"]
[Date "2019.05.17"]
[Round "1.9"]
[White "Ushenina, Anna"]
[Black "Lei, Tingjie"]
[Result "1-0"]
[ECO "A46"]
[WhiteElo "2442"]
[BlackElo "2507"]
[Annotator "RC"]
[PlyCount "141"]
[EventDate "2019.05.17"]
[EventType "blitz"]
[EventCountry "CHN"]
[SourceTitle "playchess.com"]
[Source "ChessBase"]
[SourceQuality "1"]
[TimeControl "180+2"]

1. d4 {[%emt 0:00:00]} Nf6 {[%emt 0:00:00]} 2. Nf3 {[%emt 0:00:01]} d5 {[%emt 0:00:04]} 3. c4 {[%emt 0:00:02]} e6 {[%emt 0:00:02]} 4. e3 {[%emt 0:00:02]} b6 {[%emt 0:00:10]} 5. b3 {[%emt 0:00:19]} Bd6 {[%emt 0:00:04]} 6. Bb2 {[%emt 0:00:01]} Bb7 {[%emt 0:00:01]} 7. Nbd2 {[%emt 0:00:05]} Nbd7 {[%emt 0:00:04]} 8. Bd3 {[%emt 0:00:04]} O-O {[%emt 0:00:08]} 9. O-O {[%emt 0:00:01]} Re8 {[%emt 0:00:04]} 10. Ne5 {[%emt 0:00:09]} c5 {[%emt 0:00:16]} 11. f4 {[%emt 0:00:06]} cxd4 {[%emt 0:00:02]} 12. exd4 {[%emt 0:00:01]} Rc8 {[%emt 0:00:26]} 13. Qe2 {[%emt 0:00:02]} Qe7 {[%emt 0:00:07]} 14. a3 {[%emt 0:00:19]} Nf8 {[%emt 0:00:05]} 15. f5 {[%emt 0:00:19]} dxc4 {[%emt 0:00:24]} 16. Ndxc4 {[%emt 0:00:08]} Bb8 {[%emt 0:00:02]} 17. Rf2 {[%emt 0:00:15]} exf5 {[%emt 0:00:24]} 18. Bxf5 {[%emt 0:00:03]} Rcd8 {[%emt 0:00:02]} 19. Raf1 {[%emt 0:00:05]} Ng6 {[%emt 0:00:04]} 20. a4 {[%emt 0:00:15]} Bd5 {[%emt 0:00:04]} 21. Qc2 {[%emt 0:00:14]} Bb7 {[%emt 0:00:58]} 22. Bd3 {[%emt 0:00:24]} Bd5 {[%emt 0:00:07]} 23. Ne3 {[%emt 0:00:12]} Nxe5 {[%emt 0:00:03]} 24. dxe5 {[%emt 0:00:02]} Bxe5 {[%emt 0:00:01]} 25. Nf5 {[%emt 0:00:00]} Qf8 {[%emt 0:00:03]} 26. Bxe5 {[%emt 0:00:04]} Rxe5 {[%emt 0:00:01]} 27. Nxg7 {[%emt 0:00:07]} Qxg7 {[%emt 0:00:03]} 28. Rxf6 {[%emt 0:00:01]} Rg5 {[%emt 0:00:03]} 29. R6f2 {[%emt 0:00:03]} Bxg2 {[%emt 0:00:03]} 30. Bxh7+ {[%emt 0:00:05]} Qxh7 {[%emt 0:00:02]} 31. Qxh7+ {[%emt 0:00:02]} Kxh7 {[%emt 0:00:01]} 32. Rxg2 {[%emt 0:00:03]} Rxg2+ {[%emt 0:00:00]} 33. Kxg2 {[%emt 0:00:01]} Kg6 {[%emt 0:00:01]} 34. Rf3 {[%emt 0:00:08]} Rd4 {[%emt 0:00:02]} 35. Rc3 {[%emt 0:00:04]} f6 {[%emt 0:00:01]} 36. Rc7 {[%emt 0:00:03]} a5 {[%emt 0:00:01]} 37. Rc6 {[%emt 0:00:02]} Rb4 {[%emt 0:00:01]} 38. Rc3 {[%emt 0:00:01]} Kg5 {[%emt 0:00:02]} 39. Kf3 {[%emt 0:00:03]} Rh4 {[%emt 0:00:02]} 40. Kg3 {[%emt 0:00:02]} Rg4+ {[%emt 0:00:01]} 41. Kf3 {[%emt 0:00:00]} f5 {[%emt 0:00:02]} 42. Rc8 {[%emt 0:00:05]} Rb4 {[%emt 0:00:03]} 43. Rc3 {[%emt 0:00:01]} Kf6 {[%emt 0:00:03]} 44. Re3 {[%emt 0:00:01]} Rh4 {[%emt 0:00:02]} 45. Re2 {[%emt 0:00:04]} Rh3+ {[%emt 0:00:01]} 46. Kg2 {[%emt 0:00:04]} Rxb3 {[%emt 0:00:02]} 47. Rc2 {[%emt 0:00:03]} Kg5 {[%emt 0:00:01]} 48. Rc6 {[%emt 0:00:02]} Kg4 {[%emt 0:00:03]} 49. Re6 {[%emt 0:00:06]} Rb2+ {[%emt 0:00:02]} 50. Kg1 {[%emt 0:00:06]} f4 {[%emt 0:00:01]} 51. Rg6+ {[%emt 0:00:02]} Kf3 52. h4 Rb1+ {[%emt 0:00:07]} 53. Kh2 {[%emt 0:00:01]} Rb2+ {[%emt 0:00:00]} 54. Kg1 {[%emt 0:00:00]} b5 {[%emt 0:00:05]} 55. axb5 {[%emt 0:00:05]} a4 {[%emt 0:00:01]} 56. Ra6 {[%emt 0:00:03]} Kg3 {[%emt 0:00:02]} 57. Rg6+ {[%emt 0:00:04]} Kxh4 {[%emt 0:00:01]} 58. Ra6 {[%emt 0:00:01]} Kg3 {[%emt 0:00:01]} 59. Rg6+ {[%emt 0:00:01]} Kf3 {[%emt 0:00:01]} 60. Ra6 {[%emt 0:00:00]} Rb4 {[%emt 0:00:08]} 61. b6 {[%emt 0:00:01]} Ke2 {[%emt 0:00:02]} 62. b7 {[%emt 0:00:01]} f3 {[%emt 0:00:03]} 63. Rxa4 {[%emt 0:00:04]} f2+ {[%emt 0:00:02]} 64. Kh2 {[%emt 0:00:01]} Rxa4 {[%emt 0:00:02]} 65. b8=Q {[%emt 0:00:02]} f1=Q {[%emt 0:00:03]} 66. Qb5+ {[%emt 0:00:02]} Kf2 {[%emt 0:00:02]} 67. Qf5+ {[%emt 0:00:03]} Ke1 {[%emt 0:00:02]} 68. Qb1+ {[%emt 0:00:02]} Kf2 69. Qf5+ Ke2 70. Qb5+ Kf2 71. Qf5+ 1-0

[Event "IMSA Blitz Women 2019"]
[Site "Hengshui"]
[Date "2019.05.17"]
[Round "1.11"]
[White "Tan, Zhongyi"]
[Black "Dzagnidze, Nana"]
[Result "0-1"]
[ECO "A27"]
[WhiteElo "2513"]
[BlackElo "2510"]
[Annotator "RC"]
[PlyCount "112"]
[EventDate "2019.05.17"]
[EventType "blitz"]
[EventCountry "CHN"]
[SourceTitle "playchess.com"]
[Source "ChessBase"]
[SourceQuality "1"]
[TimeControl "180+2"]

1. c4 {[%emt 0:00:00]} e5 {[%emt 0:00:01]} 2. Nc3 {[%emt 0:00:01]} Nc6 {[%emt 0:00:02]} 3. Nf3 {[%emt 0:00:01]} Bb4 {[%emt 0:00:04]} 4. e3 {[%emt 0:00:24]} Bxc3 {[%emt 0:00:07]} 5. bxc3 {[%emt 0:00:02]} d6 {[%emt 0:00:06]} 6. d3 {[%emt 0:00:05]} Nge7 {[%emt 0:00:10]} 7. g3 {[%emt 0:00:13]} O-O {[%emt 0:00:26]} 8. Bg2 {[%emt 0:00:02]} h6 {[%emt 0:00:34]} 9. Rb1 {[%emt 0:00:07]} Rb8 {[%emt 0:00:02]} 10. O-O {[%emt 0:00:06]} Be6 {[%emt 0:00:01]} 11. Nd2 {[%emt 0:00:08]} Qd7 {[%emt 0:00:07]} 12. e4 {[%emt 0:00:26]} Bh3 {[%emt 0:00:07]} 13. Qe2 {[%emt 0:00:16]} Bxg2 {[%emt 0:00:07]} 14. Kxg2 {[%emt 0:00:02]} f5 {[%emt 0:00:01]} 15. f4 {[%emt 0:00:07]} b6 {[%emt 0:00:02]} 16. Nf3 {[%emt 0:00:09]} exf4 {[%emt 0:00:08]} 17. Bxf4 Ng6 18. Nd4 {[%emt 0:00:27]} Rbe8 {[%emt 0:00:08]} 19. Qh5 {[%emt 0:00:21]} Nxf4+ {[%emt 0:00:41]} 20. Rxf4 {[%emt 0:00:02]} Nxd4 {[%emt 0:00:02]} 21. cxd4 {[%emt 0:00:03]} Qa4 {[%emt 0:00:18]} 22. Rb2 {[%emt 0:00:26]} Qa3 {[%emt 0:00:09]} 23. Qe2 {[%emt 0:00:04]} fxe4 {[%emt 0:00:02]} 24. Rxf8+ {[%emt 0:00:06]} Kxf8 {[%emt 0:00:09]} 25. dxe4 {[%emt 0:00:01]} Rxe4 {[%emt 0:00:07]} 26. Qf1+ {[%emt 0:00:08]} Kg8 {[%emt 0:00:02]} 27. Rf2 {[%emt 0:00:01]} Re8 {[%emt 0:00:02]} 28. Qb1 {[%emt 0:00:04]} Qe3 {[%emt 0:00:02]} 29. Qb5 {[%emt 0:00:03]} Qe4+ {[%emt 0:00:03]} 30. Kg1 {[%emt 0:00:01]} c6 {[%emt 0:00:02]} 31. Qh5 {[%emt 0:00:02]} Re7 {[%emt 0:00:02]} 32. Rf4 {[%emt 0:00:03]} Qe1+ {[%emt 0:00:02]} 33. Kg2 {[%emt 0:00:01]} Qe2+ {[%emt 0:00:01]} 34. Qxe2 {[%emt 0:00:03]} Rxe2+ {[%emt 0:00:01]} 35. Kh3 {[%emt 0:00:02]} Rxa2 {[%emt 0:00:01]} 36. Re4 {[%emt 0:00:01]} Rd2 {[%emt 0:00:02]} 37. Re8+ {[%emt 0:00:03]} Kf7 {[%emt 0:00:01]} 38. Rc8 {[%emt 0:00:01]} c5 {[%emt 0:00:05]} 39. dxc5 {[%emt 0:00:02]} dxc5 {[%emt 0:00:01]} 40. Rc7+ {[%emt 0:00:01]} Kf6 {[%emt 0:00:01]} 41. Rxa7 {[%emt 0:00:01]} Rb2 {[%emt 0:00:02]} 42. Rc7 {[%emt 0:00:01]} Rb4 {[%emt 0:00:01]} 43. Kg2 {[%emt 0:00:02]} Ke5 {[%emt 0:00:04]} 44. Rxg7 {[%emt 0:00:02]} Rxc4 {[%emt 0:00:01]} 45. Rg6 {[%emt 0:00:00]} Rb4 {[%emt 0:00:00]} 46. Rxh6 {[%emt 0:00:02]} c4 {[%emt 0:00:01]} 47. Rc6 {[%emt 0:00:01]} Kd5 {[%emt 0:00:02]} 48. Rc8 {[%emt 0:00:01]} Rb2+ {[%emt 0:00:03]} 49. Kg1 {[%emt 0:00:03]} b5 {[%emt 0:00:02]} 50. h4 {[%emt 0:00:01]} b4 {[%emt 0:00:01]} 51. h5 {[%emt 0:00:01]} Ra2 {[%emt 0:00:08]} 52. h6 {[%emt 0:00:03]} Ra7 {[%emt 0:00:01]} 53. g4 {[%emt 0:00:02]} b3 {[%emt 0:00:02]} 54. g5 {[%emt 0:00:02]} b2 {[%emt 0:00:01]} 55. Rb8 {[%emt 0:00:01]} c3 {[%emt 0:00:01]} 56. Kf2 {[%emt 0:00:06]} c2 {[%emt 0:00:02]} 0-1

[Event "IMSA Blitz Women 2019"]
[Site "Hengshui"]
[Date "2019.05.17"]
[Round "1.12"]
[White "Stefanova, Antoaneta"]
[Black "Krush, Irina"]
[Result "1-0"]
[ECO "D00"]
[WhiteElo "2470"]
[BlackElo "2422"]
[Annotator "RC"]
[PlyCount "73"]
[EventDate "2019.05.17"]
[EventType "blitz"]
[EventCountry "CHN"]
[SourceTitle "playchess.com"]
[Source "ChessBase"]
[SourceQuality "1"]
[TimeControl "180+2"]

1. d4 {[%emt 0:00:00]} d5 {[%emt 0:00:00]} 2. Bf4 {[%emt 0:00:00]} Nf6 {[%emt 0:00:02]} 3. e3 {[%emt 0:00:01]} c5 {[%emt 0:00:03]} 4. c3 {[%emt 0:00:05]} Nc6 {[%emt 0:00:02]} 5. Nd2 {[%emt 0:00:04]} Bf5 {[%emt 0:00:27]} 6. Ngf3 {[%emt 0:00:10]} e6 {[%emt 0:00:05]} 7. Ne5 {[%emt 0:00:32]} Nd7 {[%emt 0:00:39]} 8. Nxc6 {[%emt 0:00:38]} bxc6 {[%emt 0:00:02]} 9. Be2 {[%emt 0:00:04]} Be7 {[%emt 0:00:03]} 10. O-O {[%emt 0:00:02]} O-O {[%emt 0:00:01]} 11. h3 {[%emt 0:00:00]} cxd4 {[%emt 0:00:11]} 12. exd4 {[%emt 0:00:05]} c5 {[%emt 0:00:02]} 13. Nf3 {[%emt 0:00:05]} Qb6 {[%emt 0:00:06]} 14. b3 {[%emt 0:00:02]} Rac8 {[%emt 0:00:09]} 15. Qd2 {[%emt 0:00:14]} Nf6 {[%emt 0:00:09]} 16. c4 {[%emt 0:00:19]} Rfd8 {[%emt 0:00:11]} 17. Qb2 {[%emt 0:00:08]} dxc4 {[%emt 0:00:09]} 18. dxc5 {[%emt 0:00:05]} Bxc5 {[%emt 0:00:30]} 19. Bxc4 {[%emt 0:00:01]} Ne4 {[%emt 0:00:02]} 20. Qe2 {[%emt 0:00:04]} h6 {[%emt 0:00:08]} 21. Ne5 {[%emt 0:00:20]} Bd4 {[%emt 0:00:13]} 22. Rac1 {[%emt 0:00:04]} Bxe5 {[%emt 0:00:13]} 23. Bxe5 {[%emt 0:00:02]} Rd2 {[%emt 0:00:01]} 24. Qf3 {[%emt 0:00:17]} Rxa2 {[%emt 0:00:02]} 25. g4 {[%emt 0:00:06]} Nd2 {[%emt 0:00:05]} 26. Qf4 {[%emt 0:00:06]} Bg6 {[%emt 0:00:08]} 27. Rfd1 {[%emt 0:00:06]} Nxc4 {[%emt 0:00:08]} 28. bxc4 {[%emt 0:00:01]} a5 {[%emt 0:00:02]} 29. Bd4 {[%emt 0:00:04]} Qb3 {[%emt 0:00:01]} 30. Qe5 {[%emt 0:00:04]} f6 {[%emt 0:00:01]} 31. Qxe6+ {[%emt 0:00:01]} Kh7 {[%emt 0:00:01]} 32. Qxc8 {[%emt 0:00:01]} Qxh3 {[%emt 0:00:01]} 33. Qe6 {[%emt 0:00:03]} h5 {[%emt 0:00:04]} 34. Rc3 {[%emt 0:00:01]} Qh4 {[%emt 0:00:04]} 35. Rg3 {[%emt 0:00:04]} a4 36. g5 fxg5 37. Qe7 1-0

[Event "IMSA Blitz Women 2019"]
[Site "Hengshui"]
[Date "2019.05.17"]
[Round "2.1"]
[White "Dzagnidze, Nana"]
[Black "Kosteniuk, Alexandra"]
[Result "1/2-1/2"]
[ECO "A06"]
[WhiteElo "2510"]
[BlackElo "2546"]
[Annotator "RC"]
[PlyCount "110"]
[EventDate "2019.05.17"]
[EventType "blitz"]
[EventCountry "CHN"]
[SourceTitle "playchess.com"]
[Source "ChessBase"]
[SourceQuality "1"]
[TimeControl "180+2"]

1. Nf3 {[%emt 0:00:00]} d5 {[%emt 0:00:00]} 2. b3 {[%emt 0:00:01]} Nf6 {[%emt 0:00:00]} 3. Bb2 {[%emt 0:00:01]} g6 {[%emt 0:00:01]} 4. g3 {[%emt 0:00:03]} Bg7 {[%emt 0:00:01]} 5. Bg2 {[%emt 0:00:02]} O-O {[%emt 0:00:01]} 6. c4 {[%emt 0:00:03]} c6 {[%emt 0:00:01]} 7. O-O {[%emt 0:00:04]} Bf5 {[%emt 0:00:02]} 8. d3 {[%emt 0:00:02]} Qc8 {[%emt 0:00:02]} 9. Re1 {[%emt 0:00:10]} Bh3 {[%emt 0:00:01]} 10. Bh1 {[%emt 0:00:03]} Na6 {[%emt 0:00:08]} 11. Nbd2 {[%emt 0:00:10]} Rd8 {[%emt 0:00:10]} 12. a3 {[%emt 0:00:16]} dxc4 {[%emt 0:00:07]} 13. bxc4 {[%emt 0:00:03]} Nc5 {[%emt 0:00:08]} 14. Qc2 {[%emt 0:00:04]} Qg4 {[%emt 0:00:35]} 15. Ne5 {[%emt 0:00:11]} Qh5 {[%emt 0:00:15]} 16. d4 {[%emt 0:00:17]} Ne6 {[%emt 0:00:13]} 17. e3 {[%emt 0:00:12]} Ng4 {[%emt 0:00:14]} 18. Nxg4 {[%emt 0:00:08]} Bxg4 {[%emt 0:00:01]} 19. Bg2 {[%emt 0:00:09]} Ng5 {[%emt 0:00:09]} 20. h4 {[%emt 0:00:11]} Nf3+ {[%emt 0:00:01]} 21. Nxf3 {[%emt 0:00:03]} Bxf3 {[%emt 0:00:01]} 22. Rab1 {[%emt 0:00:12]} Bxg2 {[%emt 0:00:04]} 23. Kxg2 {[%emt 0:00:01]} Rab8 {[%emt 0:00:07]} 24. Bc3 {[%emt 0:00:10]} Qg4 {[%emt 0:00:10]} 25. Bb4 {[%emt 0:00:22]} e5 {[%emt 0:00:04]} 26. dxe5 {[%emt 0:00:13]} Bxe5 {[%emt 0:00:01]} 27. Red1 {[%emt 0:00:06]} b6 {[%emt 0:00:13]} 28. Be7 {[%emt 0:00:15]} Rd7 {[%emt 0:00:12]} 29. Rxd7 {[%emt 0:00:13]} Qxd7 {[%emt 0:00:01]} 30. Bg5 {[%emt 0:00:01]} f6 {[%emt 0:00:21]} 31. Bf4 {[%emt 0:00:06]} Bxf4 {[%emt 0:00:02]} 32. exf4 {[%emt 0:00:01]} Rd8 {[%emt 0:00:02]} 33. Re1 {[%emt 0:00:02]} Kf7 {[%emt 0:00:09]} 34. a4 {[%emt 0:00:04]} Qd3 {[%emt 0:00:02]} 35. Qa2 {[%emt 0:00:05]} Qd2 {[%emt 0:00:03]} 36. Qb1 {[%emt 0:00:03]} Qd3 {[%emt 0:00:15]} 37. Qa2 {[%emt 0:00:02]} Rd4 {[%emt 0:00:05]} 38. c5+ {[%emt 0:00:03]} Qc4 {[%emt 0:00:01]} 39. Qxc4+ Rxc4 {[%emt 0:00:01]} 40. cxb6 {[%emt 0:00:03]} axb6 {[%emt 0:00:00]} 41. Rb1 {[%emt 0:00:01]} Rxa4 {[%emt 0:00:01]} 42. Rxb6 {[%emt 0:00:01]} Rc4 {[%emt 0:00:00]} 43. Rb7+ {[%emt 0:00:01]} Kg8 {[%emt 0:00:02]} 44. Rc7 {[%emt 0:00:01]} Rc3 {[%emt 0:00:01]} 45. Kf1 {[%emt 0:00:04]} h5 {[%emt 0:00:03]} 46. Ke2 {[%emt 0:00:01]} f5 {[%emt 0:00:04]} 47. Kd2 {[%emt 0:00:01]} Rc5 {[%emt 0:00:05]} 48. Ke3 {[%emt 0:00:02]} Kf8 {[%emt 0:00:02]} 49. Kd4 {[%emt 0:00:05]} Rc2 {[%emt 0:00:07]} 50. Kd3 {[%emt 0:00:03]} Rc1 {[%emt 0:00:02]} 51. Kd2 {[%emt 0:00:03]} Rc5 {[%emt 0:00:01]} 52. Kd3 {[%emt 0:00:01]} Ke8 {[%emt 0:00:03]} 53. Ke3 {[%emt 0:00:03]} Kf8 {[%emt 0:00:04]} 54. Kd3 {[%emt 0:00:01]} Ke8 {[%emt 0:00:01]} 55. Ke3 {[%emt 0:00:01]} Kf8 {[%emt 0:00:00] Ke4} 1/2-1/2

[Event "IMSA Blitz Women 2019"]
[Site "Hengshui"]
[Date "2019.05.17"]
[Round "2.1"]
[White "Lei, Tingjie"]
[Black "Bodnaruk, Anastasia"]
[Result "1-0"]
[ECO "E71"]
[WhiteElo "2507"]
[BlackElo "2431"]
[Annotator "ChessBase"]
[PlyCount "119"]
[EventDate "2019.05.17"]
[EventType "blitz"]
[EventCountry "CHN"]
[SourceTitle "playchess.com"]
[Source "ChessBase"]
[SourceQuality "1"]
[TimeControl "180+2"]

1. d4 {[%emt 0:00:00]} Nf6 {[%emt 0:00:00]} 2. c4 {[%emt 0:00:01]} g6 {[%emt 0:00:00]} 3. Nc3 {[%emt 0:00:01]} Bg7 {[%emt 0:00:00]} 4. e4 {[%emt 0:00:02]} d6 {[%emt 0:00:01]} 5. h3 {[%emt 0:00:02]} O-O {[%emt 0:00:02]} 6. Nf3 {[%emt 0:00:02]} e5 {[%emt 0:00:03]} 7. d5 {[%emt 0:00:01]} a5 {[%emt 0:00:04]} 8. g4 {[%emt 0:00:06]} Na6 {[%emt 0:00:06]} 9. Be3 {[%emt 0:00:01]} Nd7 {[%emt 0:00:08]} 10. a3 {[%emt 0:00:02]} Nac5 {[%emt 0:00:25]} 11. Nd2 {[%emt 0:00:02]} Nb6 {[%emt 0:00:07]} 12. Be2 {[%emt 0:00:06]} f5 {[%emt 0:00:20]} 13. gxf5 {[%emt 0:00:06]} gxf5 {[%emt 0:00:01]} 14. h4 {[%emt 0:00:05]} f4 {[%emt 0:00:15]} 15. Bxc5 {[%emt 0:00:02]} dxc5 {[%emt 0:00:01]} 16. Bg4 {[%emt 0:00:14]} Kh8 {[%emt 0:00:11]} 17. Qf3 {[%emt 0:00:18]} Bxg4 {[%emt 0:00:14]} 18. Qxg4 {[%emt 0:00:02]} Qd7 {[%emt 0:00:00]} 19. Qxd7 {[%emt 0:00:04]} Nxd7 {[%emt 0:00:01]} 20. Nb5 {[%emt 0:00:09]} c6 {[%emt 0:00:34]} 21. Nc7 {[%emt 0:00:04]} Rac8 {[%emt 0:00:12]} 22. Ne6 {[%emt 0:00:02]} Rf6 {[%emt 0:00:04]} 23. Nf3 {[%emt 0:00:03]} cxd5 {[%emt 0:00:03]} 24. cxd5 {[%emt 0:00:02]} Rg6 {[%emt 0:00:14]} 25. O-O-O {[%emt 0:00:04]} Nf8 {[%emt 0:00:07]} 26. Nxf8 {[%emt 0:00:13]} Rxf8 {[%emt 0:00:01]} 27. Rhg1 {[%emt 0:00:01]} Rxg1 {[%emt 0:00:08]} 28. Rxg1 {[%emt 0:00:02]} b5 {[%emt 0:00:02]} 29. Kc2 {[%emt 0:00:01]} a4 {[%emt 0:00:03]} 30. Rd1 {[%emt 0:00:02]} Rd8 {[%emt 0:00:02]} 31. d6 {[%emt 0:00:09]} Bf6 {[%emt 0:00:13]} 32. Rd5 {[%emt 0:00:11]} b4 {[%emt 0:00:03]} 33. d7 {[%emt 0:00:17]} Kg7 {[%emt 0:00:04]} 34. Nxe5 {[%emt 0:00:18]} Bxe5 {[%emt 0:00:07]} 35. Rxe5 {[%emt 0:00:01]} Rxd7 36. Rxc5 {[%emt 0:00:02]} b3+ {[%emt 0:00:08]} 37. Kc3 {[%emt 0:00:02]} Rd1 {[%emt 0:00:01]} 38. Rc4 {[%emt 0:00:03]} Rf1 {[%emt 0:00:06]} 39. Rxa4 {[%emt 0:00:04]} Rxf2 40. e5 {[%emt 0:00:02]} Rf3+ {[%emt 0:00:02]} 41. Kc4 {[%emt 0:00:07]} Re3 {[%emt 0:00:03]} 42. Kd5 {[%emt 0:00:03]} f3 {[%emt 0:00:01]} 43. Rf4 {[%emt 0:00:01]} Re2 {[%emt 0:00:05]} 44. Rxf3 {[%emt 0:00:01]} Rxb2 {[%emt 0:00:00]} 45. Kc4 {[%emt 0:00:01]} Re2 {[%emt 0:00:02]} 46. Rxb3 {[%emt 0:00:01]} Rxe5 {[%emt 0:00:01]} 47. Rd3 {[%emt 0:00:05]} Kg6 {[%emt 0:00:02]} 48. a4 {[%emt 0:00:01]} Re1 {[%emt 0:00:01]} 49. a5 {[%emt 0:00:02]} Ra1 {[%emt 0:00:03]} 50. Kb5 {[%emt 0:00:01]} Kh5 {[%emt 0:00:02]} 51. Rd4 {[%emt 0:00:01]} h6 {[%emt 0:00:01]} 52. Rb4 {[%emt 0:00:01]} Rf1 {[%emt 0:00:03]} 53. a6 {[%emt 0:00:01]} Rf7 {[%emt 0:00:03]} 54. Ka5 {[%emt 0:00:02]} Rf1 {[%emt 0:00:04]} 55. a7 {[%emt 0:00:01]} Rf8 {[%emt 0:00:01]} 56. Ka6 {[%emt 0:00:01]} Rf6+ {[%emt 0:00:03]} 57. Rb6 {[%emt 0:00:02]} Rf1 {[%emt 0:00:01]} 58. a8=Q {[%emt 0:00:03]} Ra1+ {[%emt 0:00:01]} 59. Kb7 {[%emt 0:00:01]} Rxa8 {[%emt 0:00:01]} 60. Kxa8 {[%emt 0:00:02]} 1-0